[Event "Late-Titled-Tuesday-Blitz-March-05-2024"]
[Site "Chess.com"]
[Date "2024.03.05"]
[Round "10"]
[White "andrzej"]
[Black "Burgsvik"]
[Result "1-0"]
[WhiteElo "2487"]
[BlackElo "2362"]
[TimeControl "180+1"]
[EndTime "15:53:00 PST"]
[Termination "andrzej won by checkmate"]

1. e4 {[%clk 0:03:00.9]} 1... c5 {[%clk 0:03:00.9]} 2. Nf3 {[%clk 0:03:00.4]}
2... Nc6 {[%clk 0:02:57.1]} 3. d4 {[%clk 0:03:00.7]} 3... cxd4 {[%clk 0:02:58]}
4. Nxd4 {[%clk 0:03:01.4]} 4... Nf6 {[%clk 0:02:57.4]} 5. Nc3 {[%clk 0:03:01.9]}
5... e5 {[%clk 0:02:57.4]} 6. Ndb5 {[%clk 0:03:01.8]} 6... d6 {[%clk 0:02:57.3]}
7. Bg5 {[%clk 0:03:02.3]} 7... a6 {[%clk 0:02:57.1]} 8. Na3 {[%clk 0:03:02.9]}
8... b5 {[%clk 0:02:57.3]} 9. Nd5 {[%clk 0:03:03.5]} 9... Be7 {[%clk 0:02:57.3]}
10. Bxf6 {[%clk 0:03:04.1]} 10... Bxf6 {[%clk 0:02:57.9]} 11. c4 {[%clk
0:03:04.7]} 11... b4 {[%clk 0:02:57.7]} 12. Nc2 {[%clk 0:03:05]} 12... a5 {[%clk
0:02:57.8]} 13. Qf3 {[%clk 0:03:04.5]} 13... O-O {[%clk 0:02:55.8]} 14. Nxf6+
{[%clk 0:03:04.2]} 14... Qxf6 {[%clk 0:02:55.8]} 15. Qxf6 {[%clk 0:03:04.1]}
15... gxf6 {[%clk 0:02:55.9]} 16. Rd1 {[%clk 0:03:01.1]} 16... Rd8 {[%clk
0:02:55.1]} 17. Be2 {[%clk 0:02:57.1]} 17... f5 {[%clk 0:02:54.3]} 18. exf5
{[%clk 0:02:52.9]} 18... Bxf5 {[%clk 0:02:53.7]} 19. Ne3 {[%clk 0:02:53.5]}
19... Be4 {[%clk 0:02:50]} 20. f3 {[%clk 0:02:38]} 20... Bg6 {[%clk 0:02:49.2]}
21. h4 {[%clk 0:02:38.5]} 21... h6 {[%clk 0:02:48.1]} 22. h5 {[%clk 0:02:38.1]}
22... Bh7 {[%clk 0:02:47.9]} 23. Ng4 {[%clk 0:02:38.6]} 23... Kg7 {[%clk
0:02:43.8]} 24. Ne3 {[%clk 0:02:23.1]} 24... Nd4 {[%clk 0:02:42.6]} 25. Bd3
{[%clk 0:02:22.9]} 25... f5 {[%clk 0:02:41.7]} 26. Kf2 {[%clk 0:02:19.5]} 26...
f4 {[%clk 0:02:41.2]} 27. Nd5 {[%clk 0:02:13.9]} 27... Bg8 {[%clk 0:02:36.7]}
28. Be4 {[%clk 0:02:04]} 28... Bxd5 {[%clk 0:02:35.3]} 29. Bxd5 {[%clk
0:02:04.9]} 29... Ra7 {[%clk 0:02:35.6]} 30. Rh4 {[%clk 0:01:56.3]} 30... Kf6
{[%clk 0:02:34.7]} 31. Rg4 {[%clk 0:01:55.1]} 31... Rg7 {[%clk 0:02:34]} 32.
Rxg7 {[%clk 0:01:54.8]} 32... Kxg7 {[%clk 0:02:34]} 33. Be4 {[%clk 0:01:41.6]}
33... Kf6 {[%clk 0:02:33.6]} 34. Rh1 {[%clk 0:01:34.6]} 34... Rg8 {[%clk
0:02:32]} 35. Rc1 {[%clk 0:01:34.7]} 35... Rc8 {[%clk 0:02:29.4]} 36. b3 {[%clk
0:01:33.8]} 36... Ne6 {[%clk 0:02:25.8]} 37. Bd5 {[%clk 0:01:31.8]} 37... Nc5
{[%clk 0:02:25.4]} 38. Rh1 {[%clk 0:01:28.4]} 38... Rc7 {[%clk 0:02:22.8]} 39.
Ke2 {[%clk 0:01:27.4]} 39... Rg7 {[%clk 0:02:18.2]} 40. Kf2 {[%clk 0:01:27.5]}
40... Ra7 {[%clk 0:02:15.7]} 41. Rh4 {[%clk 0:01:21.4]} 41... a4 {[%clk
0:02:15]} 42. Rg4 {[%clk 0:01:21.2]} 42... axb3 {[%clk 0:02:11.8]} 43. axb3
{[%clk 0:01:21.5]} 43... Ra2+ {[%clk 0:02:10.9]} 44. Kg1 {[%clk 0:01:19.7]}
44... Nd3 {[%clk 0:02:05.7]} 45. Rg6+ {[%clk 0:01:18]} 45... Ke7 {[%clk
0:02:05.5]} 46. Re6+ {[%clk 0:01:14]} 46... Kd7 {[%clk 0:02:04.7]} 47. Rxh6
{[%clk 0:01:14.6]} 47... Ra1+ {[%clk 0:02:04]} 48. Kh2 {[%clk 0:01:12.8]} 48...
Nf2 {[%clk 0:02:04]} 49. Rh7+ {[%clk 0:01:10.9]} 49... Kd8 {[%clk 0:02:02.5]}
50. g3 {[%clk 0:01:04.8]} 50... Ra2 {[%clk 0:01:51.4]} 51. gxf4 {[%clk
0:00:50.5]} 51... Nd3+ {[%clk 0:01:50.3]} 52. Kh3 {[%clk 0:00:47.7]} 52... Nxf4+
{[%clk 0:01:50.4]} 53. Kg4 {[%clk 0:00:48.3]} 53... Rb2 {[%clk 0:01:31.5]} 54.
h6 {[%clk 0:00:42.4]} 54... Rh2 {[%clk 0:01:08.3]} 55. Be4 {[%clk 0:00:25.8]}
55... Ke8 {[%clk 0:01:03.1]} 56. Kg5 {[%clk 0:00:22.7]} 56... Rg2+ {[%clk
0:00:39.5]} 57. Kf6 {[%clk 0:00:22.7]} 57... Nh5+ {[%clk 0:00:22.2]} 58. Ke6
{[%clk 0:00:20.9]} 58... Kd8 {[%clk 0:00:22.1]} 59. Kxd6 {[%clk 0:00:17.2]}
59... Ke8 {[%clk 0:00:22.3]} 60. Bd5 {[%clk 0:00:13.2]} 60... Rg6+ {[%clk
0:00:20.1]} 61. Kxe5 {[%clk 0:00:12.6]} 61... Kd8 {[%clk 0:00:18.8]} 62. Rh8+
{[%clk 0:00:11.3]} 62... Ke7 {[%clk 0:00:18.4]} 63. h7 {[%clk 0:00:11.9]} 63...
Rh6 {[%clk 0:00:17.3]} 64. Be4 {[%clk 0:00:12.3]} 64... Ng7 {[%clk 0:00:16.4]}
65. Ra8 {[%clk 0:00:10.5]} 65... Rh5+ {[%clk 0:00:13.4]} 66. Kd4 {[%clk
0:00:10]} 66... Ne6+ {[%clk 0:00:13.8]} 67. Ke3 {[%clk 0:00:10.6]} 67... Kf6
{[%clk 0:00:14]} 68. h8=Q+ {[%clk 0:00:10.4]} 68... Rxh8 {[%clk 0:00:13.5]} 69.
Rxh8 {[%clk 0:00:11.3]} 69... Ke5 {[%clk 0:00:14.2]} 70. Rb8 {[%clk 0:00:11.3]}
70... Kd6 {[%clk 0:00:12]} 71. Rxb4 {[%clk 0:00:10.9]} 71... Kc5 {[%clk
0:00:12.9]} 72. Rb5+ {[%clk 0:00:10.8]} 72... Kd6 {[%clk 0:00:13.3]} 73. Rb6+
{[%clk 0:00:11.1]} 73... Ke5 {[%clk 0:00:13.3]} 74. Rxe6+ {[%clk 0:00:10.7]}
74... Kxe6 {[%clk 0:00:13.5]} 75. f4 {[%clk 0:00:11.2]} 75... Kd6 {[%clk
0:00:14.4]} 76. Kd4 {[%clk 0:00:11.5]} 76... Ke6 {[%clk 0:00:13.6]} 77. f5+
{[%clk 0:00:12.4]} 77... Kd6 {[%clk 0:00:14.5]} 78. b4 {[%clk 0:00:11.5]} 78...
Ke7 {[%clk 0:00:15.4]} 79. Ke5 {[%clk 0:00:11.6]} 79... Kd7 {[%clk 0:00:15.2]}
80. f6 {[%clk 0:00:12]} 80... Kc7 {[%clk 0:00:16.1]} 81. Bd5 {[%clk 0:00:12.2]}
81... Kb6 {[%clk 0:00:16.5]} 82. f7 {[%clk 0:00:12]} 82... Ka6 {[%clk
0:00:16.3]} 83. f8=Q {[%clk 0:00:11.6]} 83... Ka7 {[%clk 0:00:17]} 84. Qe7+
{[%clk 0:00:11.7]} 84... Kb6 {[%clk 0:00:17.1]} 85. Qb7# {[%clk 0:00:12.1]} 1-0

[Event "Late-Titled-Tuesday-Blitz-March-05-2024"]
[Site "Chess.com"]
[Date "2024.03.05"]
[Round "10"]
[White "Midgardsormur"]
[Black "Pachonpower"]
[Result "1/2-1/2"]
[WhiteElo "2451"]
[BlackElo "2311"]
[TimeControl "180+1"]
[EndTime "15:53:35 PST"]
[Termination "Game drawn - insufficient material"]

1. Nf3 {[%clk 0:03:00.9]} 1... e6 {[%clk 0:02:57.2]} 2. c4 {[%clk 0:03:01.1]}
2... d5 {[%clk 0:02:57.1]} 3. e3 {[%clk 0:03:01.4]} 3... c6 {[%clk 0:02:57.4]}
4. Nc3 {[%clk 0:03:01.6]} 4... Nd7 {[%clk 0:02:58]} 5. b3 {[%clk 0:03:02]} 5...
Ngf6 {[%clk 0:02:58.5]} 6. Bb2 {[%clk 0:03:02.5]} 6... g6 {[%clk 0:02:58.8]} 7.
d4 {[%clk 0:03:00.6]} 7... Bg7 {[%clk 0:02:58.9]} 8. Bd3 {[%clk 0:03:00.8]} 8...
O-O {[%clk 0:02:58.9]} 9. O-O {[%clk 0:03:01.2]} 9... b6 {[%clk 0:02:58.8]} 10.
Qe1 {[%clk 0:03:01.4]} 10... Bb7 {[%clk 0:02:58.4]} 11. Rd1 {[%clk 0:03:01.6]}
11... c5 {[%clk 0:02:57.6]} 12. cxd5 {[%clk 0:03:00.1]} 12... exd5 {[%clk
0:02:52.6]} 13. dxc5 {[%clk 0:02:56.9]} 13... Nxc5 {[%clk 0:02:47.5]} 14. Bb1
{[%clk 0:02:55.4]} 14... Qb8 {[%clk 0:02:43.9]} 15. Ne2 {[%clk 0:02:42.1]} 15...
a5 {[%clk 0:02:38.7]} 16. Nf4 {[%clk 0:02:40.9]} 16... Rd8 {[%clk 0:02:38.2]}
17. Nd4 {[%clk 0:02:14.3]} 17... Nfe4 {[%clk 0:02:33.4]} 18. f3 {[%clk
0:02:12.8]} 18... Nd6 {[%clk 0:02:27.8]} 19. Rf2 {[%clk 0:02:10.2]} 19... a4
{[%clk 0:02:23]} 20. b4 {[%clk 0:02:09.5]} 20... Na6 {[%clk 0:02:22.1]} 21. a3
{[%clk 0:02:08.2]} 21... Nc7 {[%clk 0:02:21.8]} 22. Ba2 {[%clk 0:01:46.7]} 22...
b5 {[%clk 0:02:16.6]} 23. Rfd2 {[%clk 0:01:24.6]} 23... Nc4 {[%clk 0:02:15.7]}
24. Bxc4 {[%clk 0:01:24.2]} 24... bxc4 {[%clk 0:02:16.6]} 25. Nde2 {[%clk
0:01:16.6]} 25... Bxb2 {[%clk 0:02:11.3]} 26. Rxb2 {[%clk 0:01:17.5]} 26... Nb5
{[%clk 0:02:06.4]} 27. Nd4 {[%clk 0:01:15.6]} 27... Nxd4 {[%clk 0:02:04.1]} 28.
Rxd4 {[%clk 0:01:16.5]} 28... Qe5 {[%clk 0:01:57.2]} 29. Qc3 {[%clk 0:00:57]}
29... Rd6 {[%clk 0:01:57]} 30. Rxc4 {[%clk 0:00:50.9]} 30... Qxc3 {[%clk
0:01:57.3]} 31. Rxc3 {[%clk 0:00:51.3]} 31... d4 {[%clk 0:01:58.2]} 32. Rd3
{[%clk 0:00:47.6]} 32... Rad8 {[%clk 0:01:52.2]} 33. Rbd2 {[%clk 0:00:45.3]}
33... Rc6 {[%clk 0:01:50.2]} 34. exd4 {[%clk 0:00:41.2]} 34... Rc1+ {[%clk
0:01:50.6]} 35. Kf2 {[%clk 0:00:41.1]} 35... Re8 {[%clk 0:01:51.2]} 36. Re3
{[%clk 0:00:39]} 36... Rec8 {[%clk 0:01:49.9]} 37. d5 {[%clk 0:00:39]} 37... Ba6
{[%clk 0:01:49.5]} 38. d6 {[%clk 0:00:37.5]} 38... h5 {[%clk 0:01:49.4]} 39. h4
{[%clk 0:00:37.4]} 39... Bb5 {[%clk 0:01:44.7]} 40. d7 {[%clk 0:00:36.4]} 40...
Rd8 {[%clk 0:01:45]} 41. Nd5 {[%clk 0:00:32.2]} 41... Kg7 {[%clk 0:01:40.1]} 42.
Nc3 {[%clk 0:00:24.1]} 42... Rxd7 {[%clk 0:01:35]} 43. Rxd7 {[%clk 0:00:19.4]}
43... Bxd7 {[%clk 0:01:35.9]} 44. b5 {[%clk 0:00:18]} 44... Rc2+ {[%clk
0:01:33.7]} 45. Kg3 {[%clk 0:00:17.7]} 45... Rb2 {[%clk 0:01:31.8]} 46. Rd3
{[%clk 0:00:12]} 46... Bxb5 {[%clk 0:01:29.2]} 47. Nxb5 {[%clk 0:00:12.9]} 47...
Rxb5 {[%clk 0:01:29.6]} 48. Rd4 {[%clk 0:00:13.5]} 48... Ra5 {[%clk 0:01:29.8]}
49. Kf4 {[%clk 0:00:13.6]} 49... Kf6 {[%clk 0:01:28.3]} 50. Rb4 {[%clk
0:00:12.7]} 50... Kg7 {[%clk 0:01:21.7]} 51. Ke4 {[%clk 0:00:12.8]} 51... Kh6
{[%clk 0:01:20.2]} 52. Kd4 {[%clk 0:00:12.8]} 52... g5 {[%clk 0:01:17.9]} 53.
hxg5+ {[%clk 0:00:12.3]} 53... Rxg5 {[%clk 0:01:18.8]} 54. Rxa4 {[%clk
0:00:10.8]} 54... Rxg2 {[%clk 0:01:18.8]} 55. Ra7 {[%clk 0:00:10.7]} 55... Kg6
{[%clk 0:01:17.6]} 56. Ra8 {[%clk 0:00:10]} 56... Ra2 {[%clk 0:01:16.6]} 57. Ke4
{[%clk 0:00:09.5]} 57... h4 {[%clk 0:01:14.1]} 58. Kf4 {[%clk 0:00:08.6]} 58...
h3 {[%clk 0:01:14.1]} 59. Kg3 {[%clk 0:00:08.1]} 59... h2 {[%clk 0:01:14.4]} 60.
Rh8 {[%clk 0:00:08]} 60... Rxa3 {[%clk 0:01:06.2]} 61. Rxh2 {[%clk 0:00:07.7]}
61... f5 {[%clk 0:01:06.9]} 62. Rb2 {[%clk 0:00:08.1]} 62... Ra4 {[%clk
0:01:05.9]} 63. Rb3 {[%clk 0:00:08.2]} 63... Kg5 {[%clk 0:01:06.3]} 64. Rb8
{[%clk 0:00:08]} 64... Rc4 {[%clk 0:01:04.7]} 65. Rg8+ {[%clk 0:00:07.7]} 65...
Kf6 {[%clk 0:01:05.3]} 66. Rh8 {[%clk 0:00:08]} 66... Kg7 {[%clk 0:01:05]} 67.
Rh4 {[%clk 0:00:07.8]} 67... Rc5 {[%clk 0:01:02.1]} 68. Rd4 {[%clk 0:00:07.7]}
68... Kg6 {[%clk 0:01:01.9]} 69. Kf4 {[%clk 0:00:08.3]} 69... Rc6 {[%clk
0:01:00.3]} 70. Ra4 {[%clk 0:00:07]} 70... Rf6 {[%clk 0:01:00.5]} 71. Ra5 {[%clk
0:00:06.8]} 71... Rf7 {[%clk 0:01:00]} 72. Re5 {[%clk 0:00:06.7]} 72... Rf6
{[%clk 0:01:00]} 73. Re7 {[%clk 0:00:06.7]} 73... Rb6 {[%clk 0:00:58.6]} 74. Re8
{[%clk 0:00:06.1]} 74... Rb4+ {[%clk 0:00:58.4]} 75. Kg3 {[%clk 0:00:05.9]}
75... Kf6 {[%clk 0:00:56.5]} 76. Rf8+ {[%clk 0:00:06]} 76... Kg6 {[%clk
0:00:56.2]} 77. Re8 {[%clk 0:00:06]} 77... Kf6 {[%clk 0:00:55.2]} 78. Rd8 {[%clk
0:00:06.4]} 78... Ra4 {[%clk 0:00:55]} 79. Rd6+ {[%clk 0:00:06.6]} 79... Ke5
{[%clk 0:00:55.4]} 80. Rb6 {[%clk 0:00:06.8]} 80... Rc4 {[%clk 0:00:54.3]} 81.
Rh6 {[%clk 0:00:06.9]} 81... Ra4 {[%clk 0:00:52.4]} 82. Rh4 {[%clk 0:00:07.5]}
82... Ra3 {[%clk 0:00:49.9]} 83. Rb4 {[%clk 0:00:07.8]} 83... Ra5 {[%clk
0:00:49.2]} 84. f4+ {[%clk 0:00:06.6]} 84... Kd5 {[%clk 0:00:48.8]} 85. Kh4
{[%clk 0:00:06.9]} 85... Ke6 {[%clk 0:00:42.7]} 86. Rb6+ {[%clk 0:00:06.3]}
86... Kf7 {[%clk 0:00:42.5]} 87. Kg5 {[%clk 0:00:06.7]} 87... Rd5 {[%clk
0:00:42.3]} 88. Rb7+ {[%clk 0:00:06.7]} 88... Ke6 {[%clk 0:00:42.4]} 89. Rg7
{[%clk 0:00:06.3]} 89... Ra5 {[%clk 0:00:41.3]} 90. Rg6+ {[%clk 0:00:06.8]}
90... Ke7 {[%clk 0:00:40.6]} 91. Rf6 {[%clk 0:00:07.1]} 91... Ra1 {[%clk
0:00:39.8]} 92. Rxf5 {[%clk 0:00:06.5]} 92... Rg1+ {[%clk 0:00:39.6]} 93. Kh4
{[%clk 0:00:06.5]} 93... Ke6 {[%clk 0:00:40.1]} 94. Rg5 {[%clk 0:00:06.4]} 94...
Rh1+ {[%clk 0:00:39.8]} 95. Kg3 {[%clk 0:00:06.4]} 95... Kf6 {[%clk 0:00:38.6]}
96. Rg4 {[%clk 0:00:05.6]} 96... Rg1+ {[%clk 0:00:37.2]} 97. Kf3 {[%clk
0:00:06.1]} 97... Rf1+ {[%clk 0:00:37.5]} 98. Ke4 {[%clk 0:00:06.2]} 98... Re1+
{[%clk 0:00:37.2]} 99. Kd3 {[%clk 0:00:06.6]} 99... Kf5 {[%clk 0:00:35.6]} 100.
Rh4 {[%clk 0:00:06.6]} 100... Re8 {[%clk 0:00:31.3]} 101. Kd4 {[%clk 0:00:05.7]}
101... Re7 {[%clk 0:00:31.6]} 102. Kd3 {[%clk 0:00:06]} 102... Re8 {[%clk
0:00:31.7]} 103. Kd2 {[%clk 0:00:05.5]} 103... Re7 {[%clk 0:00:31.9]} 104. Kd1
{[%clk 0:00:05.8]} 104... Re6 {[%clk 0:00:32.5]} 105. Kd2 {[%clk 0:00:06.3]}
105... Re7 {[%clk 0:00:33.1]} 106. Kd3 {[%clk 0:00:06.8]} 106... Re6 {[%clk
0:00:33.7]} 107. Kd4 {[%clk 0:00:07.4]} 107... Re4+ {[%clk 0:00:33.9]} 108. Kd3
{[%clk 0:00:07.3]} 108... Rxf4 {[%clk 0:00:34.8]} 109. Rxf4+ {[%clk 0:00:07.7]}
109... Kxf4 {[%clk 0:00:35.7]} 1/2-1/2

[Event "Late-Titled-Tuesday-Blitz-March-05-2024"]
[Site "Chess.com"]
[Date "2024.03.05"]
[Round "10"]
[White "annacramling"]
[Black "Charodej1"]
[Result "0-1"]
[WhiteElo "2091"]
[BlackElo "2329"]
[TimeControl "180+1"]
[EndTime "15:53:35 PST"]
[Termination "Charodej1 won by resignation"]

1. d4 {[%clk 0:03:00.9]} 1... Nf6 {[%clk 0:02:58.7]} 2. c4 {[%clk 0:03:01.4]}
2... e6 {[%clk 0:02:58.2]} 3. Nf3 {[%clk 0:03:00.9]} 3... Bb4+ {[%clk
0:02:57.3]} 4. Bd2 {[%clk 0:03:00.9]} 4... Bxd2+ {[%clk 0:02:57.3]} 5. Qxd2
{[%clk 0:03:01.8]} 5... d5 {[%clk 0:02:56.3]} 6. e3 {[%clk 0:02:57.1]} 6... O-O
{[%clk 0:02:56.4]} 7. Nc3 {[%clk 0:02:57.2]} 7... Nbd7 {[%clk 0:02:54.9]} 8. Qc2
{[%clk 0:02:55.2]} 8... c6 {[%clk 0:02:50.7]} 9. Be2 {[%clk 0:02:53.8]} 9... b6
{[%clk 0:02:49.1]} 10. O-O {[%clk 0:02:53]} 10... Bb7 {[%clk 0:02:48.8]} 11.
Rac1 {[%clk 0:02:42.7]} 11... Qe7 {[%clk 0:02:35.6]} 12. Rfd1 {[%clk 0:02:42]}
12... c5 {[%clk 0:02:29.2]} 13. Ne5 {[%clk 0:02:33.7]} 13... cxd4 {[%clk
0:02:23.5]} 14. exd4 {[%clk 0:02:32.6]} 14... Rfc8 {[%clk 0:02:13.3]} 15. Bf3
{[%clk 0:02:30.5]} 15... Nxe5 {[%clk 0:01:32.6]} 16. dxe5 {[%clk 0:02:29.9]}
16... Nd7 {[%clk 0:01:31.7]} 17. cxd5 {[%clk 0:02:22.9]} 17... Nxe5 {[%clk
0:01:31]} 18. Be4 {[%clk 0:01:57.3]} 18... exd5 {[%clk 0:00:43.4]} 19. Nxd5
{[%clk 0:01:51.5]} 19... Qh4 {[%clk 0:00:21.5]} 20. Qe2 {[%clk 0:00:35.6]} 20...
Rxc1 {[%clk 0:00:18.9]} 21. Rxc1 {[%clk 0:00:34.7]} 21... Rd8 {[%clk 0:00:15.8]}
22. g3 {[%clk 0:00:21.5]} 22... Qh6 {[%clk 0:00:07.7]} 23. Rd1 {[%clk
0:00:15.2]} 23... Bxd5 {[%clk 0:00:05]} 24. Bxd5 {[%clk 0:00:15.2]} 24... Qf6
{[%clk 0:00:05.6]} 25. f4 {[%clk 0:00:09.3]} 25... Ng6 {[%clk 0:00:05.2]} 26.
Bb3 {[%clk 0:00:05.4]} 26... Rxd1+ {[%clk 0:00:03.1]} 27. Qxd1 {[%clk
0:00:06.3]} 27... Qe7 {[%clk 0:00:02.7]} 28. Kg2 {[%clk 0:00:06]} 28... Qb7+
{[%clk 0:00:02]} 29. Qd5 {[%clk 0:00:05.8]} 29... Qe7 {[%clk 0:00:02.9]} 30.
Qa8+ {[%clk 0:00:05.4]} 30... Nf8 {[%clk 0:00:03.2]} 31. Qf3 {[%clk 0:00:05.1]}
31... a5 {[%clk 0:00:03.5]} 32. h3 {[%clk 0:00:03.7]} 32... g6 {[%clk
0:00:03.9]} 33. g4 {[%clk 0:00:03.5]} 33... Kg7 {[%clk 0:00:04.2]} 34. f5 {[%clk
0:00:03.5]} 34... f6 {[%clk 0:00:04.7]} 35. Kg3 {[%clk 0:00:03.6]} 35... Qe5+
{[%clk 0:00:04.5]} 36. Kg2 {[%clk 0:00:02.1]} 36... Qxb2+ {[%clk 0:00:04.8]} 37.
Kg3 {[%clk 0:00:02.7]} 37... Qe5+ {[%clk 0:00:05.5]} 38. Kf2 {[%clk 0:00:02.9]}
38... g5 {[%clk 0:00:05.5]} 39. Bc2 {[%clk 0:00:02.1]} 39... Qc5+ {[%clk
0:00:05.6]} 40. Kg3 {[%clk 0:00:01.4]} 40... Qxc2 {[%clk 0:00:06]} 41. Qb7+
{[%clk 0:00:02]} 41... Kh8 {[%clk 0:00:05.6]} 42. Qf7 {[%clk 0:00:02]} 42... Qc8
{[%clk 0:00:04.8]} 43. Qxf6+ {[%clk 0:00:02]} 43... Kg8 {[%clk 0:00:04.8]} 44.
Qxg5+ {[%clk 0:00:02.4]} 44... Kf7 {[%clk 0:00:05.1]} 45. Qh5+ {[%clk
0:00:02.3]} 45... Ke7 {[%clk 0:00:05.5]} 46. Qg5+ {[%clk 0:00:01.5]} 46... Ke8
{[%clk 0:00:06]} 47. Qh5+ {[%clk 0:00:01.5]} 47... Kd8 {[%clk 0:00:06.3]} 48.
Qg5+ {[%clk 0:00:01.9]} 48... Kc7 {[%clk 0:00:06.9]} 49. Qf4+ {[%clk 0:00:02.2]}
49... Kb7 {[%clk 0:00:07]} 50. Qe4+ {[%clk 0:00:02.8]} 50... Ka7 {[%clk
0:00:07.1]} 51. Qe7+ {[%clk 0:00:03.1]} 51... Ka6 {[%clk 0:00:06.3]} 52. f6
{[%clk 0:00:03.4]} 52... Qb8+ {[%clk 0:00:05.4]} 53. Kf3 {[%clk 0:00:03.4]}
53... Ng6 {[%clk 0:00:05.7]} 54. Qe6 {[%clk 0:00:02.6]} 54... Qf4+ {[%clk
0:00:05.4]} 55. Ke2 {[%clk 0:00:03.1]} 55... Qh2+ {[%clk 0:00:04.8]} 56. Kd1
{[%clk 0:00:02.1]} 56... Qh1+ {[%clk 0:00:04.9]} 57. Kc2 {[%clk 0:00:02.1]}
57... Qg2+ {[%clk 0:00:05.4]} 58. Kc1 {[%clk 0:00:02]} 58... Qg1+ {[%clk
0:00:05.2]} 59. Kc2 {[%clk 0:00:02.3]} 59... Qc5+ {[%clk 0:00:05.5]} 60. Kd1
{[%clk 0:00:01.9]} 60... Qd4+ {[%clk 0:00:05]} 61. Kc1 {[%clk 0:00:01.9]} 61...
Qc5+ {[%clk 0:00:04.8]} 62. Kd1 {[%clk 0:00:02.4]} 62... a4 {[%clk 0:00:05.7]}
63. f7 {[%clk 0:00:02]} 63... Nf8 {[%clk 0:00:05.3]} 64. Qe8 {[%clk 0:00:02.4]}
64... Qd6+ {[%clk 0:00:05.1]} 65. Kc1 {[%clk 0:00:02.4]} 65... Nd7 {[%clk
0:00:05.5]} 66. f8=Q {[%clk 0:00:02.3]} 66... Nxf8 {[%clk 0:00:05.3]} 67. Qxa4+
{[%clk 0:00:02.5]} 67... Kb7 {[%clk 0:00:05.4]} 68. Qe4+ {[%clk 0:00:03.4]}
68... Qc6+ {[%clk 0:00:05.4]} 69. Qxc6+ {[%clk 0:00:03.2]} 69... Kxc6 {[%clk
0:00:06.3]} 70. Kc2 {[%clk 0:00:03.1]} 70... Kb5 {[%clk 0:00:06.8]} 71. h4
{[%clk 0:00:03.5]} 71... Ng6 {[%clk 0:00:07]} 72. h5 {[%clk 0:00:03.7]} 72...
Ne5 {[%clk 0:00:06.7]} 73. g5 {[%clk 0:00:04.3]} 73... Kc5 {[%clk 0:00:06.4]}
74. Kd2 {[%clk 0:00:04.4]} 74... Kd5 {[%clk 0:00:06.4]} 75. Ke3 {[%clk 0:00:05]}
75... Ke6 {[%clk 0:00:06.9]} 76. Kf4 {[%clk 0:00:05.5]} 76... Nc4 {[%clk
0:00:05.2]} 77. a4 {[%clk 0:00:03.4]} 77... Kf7 {[%clk 0:00:04.8]} 78. Ke4
{[%clk 0:00:03.3]} 78... Nb2 {[%clk 0:00:04.9]} 79. Kd4 {[%clk 0:00:02.7]} 79...
Nxa4 {[%clk 0:00:05.2]} 80. Kc4 {[%clk 0:00:03.3]} 80... Nc5 {[%clk 0:00:04.3]}
81. Kb5 {[%clk 0:00:03.4]} 81... Nd7 {[%clk 0:00:04]} 82. Kc6 {[%clk 0:00:03.7]}
82... Kg7 {[%clk 0:00:03.8]} 83. Kxd7 {[%clk 0:00:01.3]} 83... b5 {[%clk
0:00:03.6]} 84. h6+ {[%clk 0:00:01.3]} 84... Kg6 {[%clk 0:00:03.6]} 85. Kc6
{[%clk 0:00:01.5]} 85... b4 {[%clk 0:00:04.5]} 86. Kc5 {[%clk 0:00:01.9]} 86...
b3 {[%clk 0:00:05.4]} 87. Kc4 {[%clk 0:00:02.8]} 87... b2 {[%clk 0:00:06.3]} 88.
Kc3 {[%clk 0:00:03.6]} 88... b1=Q {[%clk 0:00:07.2]} 89. Kd4 {[%clk 0:00:03.8]}
89... Qb5 {[%clk 0:00:07.3]} 90. Kc3 {[%clk 0:00:04]} 90... Qxg5 {[%clk
0:00:07.9]} 91. Kb2 {[%clk 0:00:04.9]} 91... Qxh6 {[%clk 0:00:08.3]} 92. Ka3
{[%clk 0:00:05.8]} 92... Qf4 {[%clk 0:00:08.5]} 93. Ka2 {[%clk 0:00:06.7]} 93...
Qf3 {[%clk 0:00:08.6]} 94. Ka1 {[%clk 0:00:07.6]} 94... Qe2 {[%clk 0:00:08.9]}
95. Kb1 {[%clk 0:00:08]} 95... Kf5 {[%clk 0:00:09.5]} 96. Ka1 {[%clk 0:00:08.9]}
96... h5 {[%clk 0:00:09.4]} 97. Kb1 {[%clk 0:00:09.8]} 97... h4 {[%clk
0:00:10.3]} 98. Ka1 {[%clk 0:00:10.7]} 98... h3 {[%clk 0:00:11.2]} 0-1